fUST/lending_fUST_20250619
["ID","MTS","AMOUNT","RATE_DAILY","PERIOD"]
[366491393,1750288243467,-460.0,0.00022191,6]
[366491394,1750288243476,-460.0,0.00022191,6]
[366491395,1750288243486,-157.12048173,0.00022191,6]
[366491396,1750288243495,-460.0,0.00022191,6]
[366491397,1750288243505,-460.0,0.00022191,2]
[366491398,1750288243514,-153.0,0.00022191,2]
[366491399,1750288243523,-153.0,0.00022191,2]
[366491400,1750288243532,-153.0,0.00022191,2]
[366491401,1750288243542,-153.0,0.00022191,2]
[366491402,1750288243552,-153.0,0.00022191,2]
[366491403,1750288243561,-153.0,0.00022191,2]
[366491404,1750288243571,-153.0,0.00022191,2]
[366491405,1750288243581,-153.0,0.00022191,2]
[366491406,1750288243590,-153.0,0.00022191,2]
[366491407,1750288243599,-153.0,0.00022191,2]
[366491409,1750288243608,-153.0,0.00022191,2]
[366491410,1750288243618,-153.0,0.00022191,2]
[366491412,1750288243627,-153.0,0.00022191,2]
[366491414,1750288243637,-153.0,0.00022191,2]
[366491415,1750288243646,-153.0,0.00022191,2]
[366491416,1750288243655,-153.0,0.00022191,2]
[366491417,1750288243664,-153.0,0.00022191,2]
[366491418,1750288243673,-153.0,0.00022191,2]
[366491419,1750288243682,-153.0,0.00022191,2]
[366491420,1750288243692,-153.0,0.00022191,2]
[366491421,1750288243701,-153.0,0.00022191,2]
[366491422,1750288243711,-153.0,0.00022191,2]
[366491423,1750288243720,-153.0,0.00022191,2]
[366491424,1750288243729,-153.0,0.00022191,2]
[366491425,1750288243739,-153.0,0.00022191,2]
[366491426,1750288243748,-153.0,0.00022191,2]
[366491427,1750288243757,-153.0,0.00022191,2]
[366491428,1750288243767,-153.0,0.00022191,2]
[366491430,1750288243776,-153.0,0.00022191,2]
[366491433,1750288243785,-153.0,0.00022191,2]
[366491436,1750288243795,-153.0,0.00022191,2]
[366491437,1750288243804,-153.0,0.00022191,2]
[366491439,1750288243814,-153.0,0.00022191,2]
[366491441,1750288243823,-153.0,0.00022191,2]
[366491443,1750288243832,-153.0,0.00022191,2]
[366491444,1750288243841,-153.0,0.00022191,2]
[366491445,1750288243850,-153.0,0.00022191,2]
[366491446,1750288243860,-153.0,0.00022191,2]
[366491447,1750288243869,-153.0,0.00022191,2]
[366491448,1750288243878,-153.0,0.00022191,2]
[366491449,1750288243887,-153.0,0.00022191,2]
[366491450,1750288243896,-153.0,0.00022191,2]
[366491451,1750288243905,-153.0,0.00022191,2]
[366491452,1750288243914,-153.0,0.00022191,2]
[366491453,1750288243923,-153.0,0.00022191,2]
[366491454,1750288243932,-153.0,0.00022191,2]
[366491455,1750288243941,-153.0,0.00022191,2]
[366491456,1750288243950,-153.0,0.00022191,2]
[366491457,1750288243959,-153.0,0.00022191,2]
[366491458,1750288243969,-153.0,0.00022191,2]
[366491459,1750288243978,-153.0,0.00022191,2]
[366491460,1750288243988,-153.0,0.00022191,2]
[366491461,1750288243997,-153.0,0.00022191,2]
[366491462,1750288244007,-153.0,0.00022191,2]
[366491463,1750288244016,-153.0,0.00022191,2]
[366491464,1750288244026,-153.0,0.00022191,2]
[366491465,1750288244035,-153.0,0.00022191,2]
[366491466,1750288244045,-153.0,0.00022191,2]
[366491467,1750288244054,-153.0,0.00022191,2]
[366491468,1750288244064,-153.0,0.00022191,2]
[366491469,1750288244073,-153.0,0.00022191,2]
[366491470,1750288244083,-153.0,0.00022191,2]
[366491471,1750288244092,-153.0,0.00022191,2]
[366491472,1750288244101,-158.9908236,0.000222,2]
[366491473,1750288244111,-153.0,0.000222,2]
[366491474,1750288244120,-177.1504183,0.000222,2]
[366491475,1750288244130,-574.2153043,0.000222,2]
[366491476,1750288244139,-153.0,0.000222,2]
[366491477,1750288244149,-500.0,0.00022218,6]
[366491478,1750288244158,-500.0,0.00022218,6]
[366491479,1750288244168,-865.0,0.00022218,6]
[366491480,1750288244178,-500.0,0.00022218,6]
[366491481,1750288244187,-500.0,0.00022246,6]
[366491482,1750288244196,-500.0,0.00022246,6]
[366491483,1750288244206,-865.0,0.00022246,6]
[366491484,1750288244215,-501.31774589,0.00022246,6]
[366491485,1750288244225,-800.0,0.00022252,2]
[366491486,1750288244235,-500.0,0.00022273,6]
[366491487,1750288244244,-453.0,0.00022273,6]
[366491488,1750288244254,-865.0,0.00022273,6]
[366491489,1750288244264,-260.0,0.00022287,2]
[366491490,1750288244274,-260.0,0.00022299,2]
[366491491,1750288244284,-500.0,0.00022301,6]
[366491492,1750288244294,-865.0,0.00022301,6]
[366491493,1750288244303,-728.6034234,0.00022301,2]
[366491494,1750288244312,-731.0967628,0.00022301,2]
[366491495,1750288244321,-731.0967628,0.00022301,2]
[366491497,1750288244331,-717.5015635,0.00022301,2]
[366491499,1750288244340,-731.0967628,0.00022301,2]
[366491501,1750288244349,-500.0,0.00022328,6]
[366491503,1750288244358,-865.0,0.00022328,6]
[366491505,1750288244368,-168.0,0.0002234,2]
[366491507,1750288244377,-500.0,0.00022355,6]
[366491508,1750288244385,-865.0,0.00022355,6]
[366491510,1750288244394,-168.0,0.00022375,2]
[366491512,1750288244403,-500.0,0.00022383,6]
[366491514,1750288244413,-865.0,0.00022383,6]
[366491515,1750288244422,-291.21606054,0.0002241,6]
[366491516,1750288244431,-865.0,0.0002241,6]
[366491517,1750288244440,-163.58333334,0.00022425,2]
[366491518,1750288244449,-865.0,0.00022438,6]
[366491519,1750288244458,-260.0,0.00022444,2]
[366491520,1750288244467,-865.0,0.00022465,6]
[366491521,1750288244475,-460.0,0.00022465,6]
[366491522,1750288244484,-362.93446276,0.00022465,6]
[366491523,1750288244494,-339.28867445,0.00022465,6]
[366491524,1750288244503,-460.0,0.00022465,6]
[366491525,1750288244512,-460.0,0.00022465,6]
[366491526,1750288244521,-460.0,0.00022465,6]
[366491527,1750288244529,-460.0,0.00022465,6]
[366491528,1750288244538,-580.16030862,0.00022465,6]
[366491529,1750288244547,-540.34493833,0.00022465,6]
[366491530,1750288244556,-460.0,0.00022465,6]
[366491531,1750288244564,-460.0,0.00022465,6]
[366491532,1750288244573,-460.0,0.00022465,6]
[366491533,1750288244583,-460.0,0.00022465,6]
[366491534,1750288244591,-497.84,0.00022465,6]
[366491535,1750288244600,-460.0,0.00022465,6]
[366491536,1750288244609,-460.0,0.00022465,6]
[366491537,1750288244618,-460.0,0.00022465,6]
[366491538,1750288244627,-460.0,0.00022465,6]
[366491539,1750288244636,-566.34,0.00022465,6]
[366491540,1750288244644,-460.0,0.00022465,6]
[366491541,1750288244653,-674.57,0.00022465,6]
[366491542,1750288244661,-460.0,0.00022465,6]
[366491543,1750288244670,-460.0,0.00022465,6]
[366491544,1750288244679,-460.0,0.00022465,6]
[366491545,1750288244688,-460.0,0.00022465,6]
[366491546,1750288244703,-460.0,0.00022465,6]
[366491547,1750288244712,-460.0,0.00022465,6]
[366491548,1750288244721,-546.70190651,0.00022465,6]
[366491549,1750288244729,-460.0,0.00022465,6]
[366491550,1750288244738,-460.0,0.00022465,6]
[366491551,1750288244747,-1259.89,0.00022465,6]
[366491552,1750288244757,-539.49,0.00022465,6]
[366491553,1750288244766,-347.46015939,0.00022465,6]
[366491554,1750288244775,-857.84,0.00022465,6]
[366491555,1750288244784,-2359.25,0.00022465,6]
[366491556,1750288244793,-151.0,0.00022465,7]
[366491557,1750288244802,-729.85,0.00022465,6]
[366491558,1750288244811,-3535.11,0.00022465,6]
[366491559,1750288244822,-460.0,0.00022465,6]
[366491560,1750288244830,-460.0,0.00022465,6]
[366491561,1750288244838,-708.82,0.00022465,6]
[366491562,1750288244846,-460.0,0.00022465,6]
[366491563,1750288244856,-460.0,0.00022465,6]
[366491564,1750288244864,-460.0,0.00022465,6]
[366491565,1750288244874,-460.0,0.00022465,6]
[366491566,1750288244883,-601.11,0.00022465,6]
[366491567,1750288244893,-460.0,0.00022465,6]
[366491568,1750288244903,-704.51,0.00022465,6]
[366491569,1750288244913,-460.0,0.00022465,6]
[366491570,1750288244922,-2913.28,0.00022465,6]
[366491571,1750288244932,-151.0,0.00022465,7]
[366491572,1750288244941,-151.0,0.00022465,7]
[366491573,1750288244950,-3761.47,0.00022465,6]
[366491574,1750288244959,-1278.45,0.00022465,6]
[366491575,1750288244967,-151.0,0.00022465,7]
[366491576,1750288244976,-460.0,0.00022465,6]
[366491577,1750288244986,-151.0,0.00022465,7]
[366491578,1750288244995,-842.53,0.00022465,6]
[366491579,1750288245004,-460.0,0.00022465,6]
[366491580,1750288245013,-460.0,0.00022465,6]
[366491581,1750288245023,-460.0,0.00022465,6]
[366491582,1750288245033,-151.0,0.00022465,7]
[366491583,1750288245042,-500.2,0.00022465,6]
[366491584,1750288245052,-612.61,0.00022465,6]
[366491585,1750288245062,-982.38,0.00022465,6]
[366491586,1750288245071,-460.0,0.00022465,6]
[366491587,1750288245080,-460.0,0.00022465,6]
[366491588,1750288245090,-460.0,0.00022465,6]
[366491589,1750288245099,-2124.4,0.00022465,6]
[366491590,1750288245109,-460.0,0.00022465,6]
[366491591,1750288245118,-561.15,0.00022465,6]
[366491592,1750288245128,-460.0,0.00022465,6]
[366491593,1750288245137,-680.8,0.00022465,6]
[366491594,1750288245147,-151.0,0.00022465,7]
[366491595,1750288245156,-460.0,0.00022465,6]
[366491596,1750288245165,-460.0,0.00022465,6]
[366491597,1750288245278,-460.0,0.00022465,6]
[366491599,1750288245302,-530.15,0.00022465,6]
[366491600,1750288245311,-2681.74,0.00022465,6]
[366491602,1750288245321,-460.0,0.00022465,6]
[366491604,1750288245330,-151.0,0.00022465,7]
[366491606,1750288245340,-460.0,0.00022465,6]
[366491608,1750288245349,-415.14,0.00022465,6]
[366491610,1750288245359,-460.0,0.00022465,6]
[366491611,1750288245368,-1450.7,0.00022465,6]
[366491613,1750288245378,-460.0,0.00022465,6]
[366491614,1750288245389,-460.0,0.00022465,6]
[366491615,1750288245398,-460.0,0.00022465,6]
[366491616,1750288245408,-376.716354,0.00022465,7]
[366491617,1750288245421,-1370.09,0.00022465,6]
[366491618,1750288245430,-376.716354,0.00022465,7]
[366491619,1750288245440,-460.0,0.00022465,6]
[366491620,1750288245451,-460.0,0.00022465,6]
[366491621,1750288245460,-460.0,0.00022465,6]
[366491622,1750288245470,-1428.41,0.00022465,6]
[366491623,1750288245479,-528.69,0.00022465,6]
[366491624,1750288245490,-514.49,0.00022465,6]
[366491625,1750288245500,-460.0,0.00022465,6]
[366491626,1750288245510,-460.0,0.00022465,6]
[366491628,1750288245519,-2477.32,0.00022465,6]
[366491630,1750288245529,-717.35,0.00022465,6]
[366491632,1750288245538,-1820.15,0.00022465,6]
[366491634,1750288245547,-460.0,0.00022465,6]
[366491636,1750288245557,-460.0,0.00022465,6]
[366491638,1750288245566,-460.0,0.00022465,6]
[366491640,1750288245575,-460.0,0.00022465,6]
[366491642,1750288245585,-1294.92,0.00022465,6]
[366491644,1750288245594,-460.0,0.00022465,6]
[366491647,1750288245604,-460.0,0.00022465,6]
[366491648,1750288245613,-589.19,0.00022465,2]
[366491650,1750288245623,-460.0,0.00022465,6]
[366491653,1750288245632,-460.0,0.00022465,6]
[366491654,1750288245641,-460.0,0.00022465,6]
[366491656,1750288245650,-746.06,0.00022465,6]
[366491658,1750288245659,-460.0,0.00022465,6]
[366491660,1750288245668,-887.24,0.00022465,6]
[366491662,1750288245678,-1211.57,0.00022465,6]
[366491664,1750288245687,-1667.65,0.00022465,6]
[366491667,1750288245697,-460.0,0.00022465,6]
[366491669,1750288245707,-460.0,0.00022465,6]
[366491671,1750288245716,-460.0,0.00022465,6]
[366491672,1750288245727,-5401.48,0.00022465,6]
[366491673,1750288245737,-494.64,0.00022465,6]
[366491675,1750288245746,-460.0,0.00022465,6]
[366491677,1750288245755,-746.12,0.00022465,6]
[366491679,1750288245766,-460.0,0.00022465,6]
[366491681,1750288245775,-460.0,0.00022465,6]
[366491683,1750288245785,-262.69671347,0.00022468,2]
[366491685,1750288245794,-865.0,0.00022492,6]
[366491688,1750288245805,-865.0,0.0002252,6]
[366491690,1750288245814,-260.0,0.0002253,2]
[366491692,1750288245824,-420.0,0.00022538,2]
[366491693,1750288245833,-151.0,0.00022547,7]
[366491696,1750288245843,-151.0,0.00022547,7]
[366491698,1750288245853,-866.74395453,0.00022547,6]
[366491700,1750288245863,-247.55118823,0.00022584,2]
[366491702,1750288245872,-5000.0,0.00022626,2]
[366491704,1750288245881,-1000.0,0.00022721,2]
[366491705,1750288245891,-20533.04103921,0.00022739,2]
[366491707,1750288245900,-27475.66826643,0.00022739,2]
[366491709,1750288245910,-460.0,0.00022739,6]
[366491711,1750288245919,-460.0,0.00022739,6]
[366491713,1750288245928,-460.0,0.00022739,6]
[366491715,1750288245937,-460.0,0.00022739,6]
[366491717,1750288245946,-460.0,0.00022739,6]
[366491719,1750288245955,-151.0,0.00022739,7]
[366491721,1750288245964,-440.0,0.00022739,6]
[366491723,1750288245974,-151.0,0.00022739,7]
[366491725,1750288245983,-460.0,0.00022739,6]
[366491727,1750288245993,-460.0,0.00022739,6]
[366491729,1750288246003,-162.365828,0.00022739,7]
[366491731,1750288246012,-162.365828,0.00022739,7]
[366491734,1750288246022,-151.0,0.00022739,7]
[366491735,1750288246031,-151.0,0.00022739,7]
[366491738,1750288246040,-497.84,0.00022739,6]
[366491740,1750288246050,-151.0,0.00022739,7]
[366491742,1750288246060,-272.41321,0.00022739,7]
[366491744,1750288246069,-460.0,0.00022739,6]
[366491746,1750288246079,-460.0,0.00022739,6]
[366491748,1750288246088,-151.0,0.00022739,7]
[366491749,1750288246098,-460.0,0.00022739,6]
[366491751,1750288246107,-151.0,0.00022739,7]
[366491753,1750288246117,-460.0,0.00022739,6]
[366491755,1750288246126,-151.0,0.00022739,7]
[366491757,1750288246136,-566.34,0.00022739,6]
[366491759,1750288246146,-460.0,0.00022739,6]
[366491762,1750288246155,-151.0,0.00022739,7]
[366491764,1750288246165,-151.0,0.00022739,7]
[366491766,1750288246175,-674.57,0.00022739,6]
[366491768,1750288246184,-460.0,0.00022739,6]
[366491770,1750288246194,-411.10680584,0.00022739,6]
[366491772,1750288246203,-460.0,0.00022739,6]
[366491774,1750288246212,-460.0,0.00022739,6]
[366491777,1750288246222,-151.0,0.00022739,7]
[366491780,1750288246232,-151.0,0.00022739,7]
[366491782,1750288246241,-460.0,0.00022739,6]
[366491784,1750288246251,-460.0,0.00022739,6]
[366491785,1750288246260,-460.0,0.00022739,6]
[366491788,1750288246270,-460.0,0.00022739,6]
[366491789,1750288246279,-151.0,0.00022739,2]
[366491791,1750288246289,-151.0,0.00022739,2]
[366491794,1750288246299,-1259.89,0.00022739,6]
[366491795,1750288246308,-194.356652,0.00022739,7]
[366491797,1750288246318,-194.356652,0.00022739,7]
[366491799,1750288246327,-539.49,0.00022739,6]
[366491802,1750288246337,-151.0,0.00022739,7]
[366491803,1750288246347,-857.84,0.00022739,6]
[366491805,1750288246356,-2359.25,0.00022739,6]
[366491807,1750288246366,-729.85,0.00022739,6]
[366491809,1750288246375,-3535.11,0.00022739,6]
[366491811,1750288246385,-460.0,0.00022739,6]
[366491813,1750288246394,-708.82,0.00022739,6]
[366491815,1750288246404,-460.0,0.00022739,6]
[366491817,1750288246417,-460.0,0.00022739,6]
[366491819,1750288246426,-460.0,0.00022739,6]
[366491821,1750288246437,-460.0,0.00022739,6]
[366491823,1750288246447,-601.11,0.00022739,6]
[366491825,1750288246457,-460.0,0.00022739,6]
[366491827,1750288246466,-704.51,0.00022739,6]
[366491829,1750288246475,-460.0,0.00022739,6]
[366491831,1750288246485,-2913.28,0.00022739,6]
[366491834,1750288246495,-151.0,0.00022739,7]
[366491836,1750288246505,-3761.47,0.00022739,6]
[366491838,1750288246514,-1278.45,0.00022739,6]
[366491840,1750288246522,-151.0,0.00022739,7]
[366491842,1750288246532,-460.0,0.00022739,6]
[366491845,1750288246541,-151.0,0.00022739,7]
[366491847,1750288246551,-842.53,0.00022739,6]
[366491848,1750288246560,-460.0,0.00022739,6]
[366491850,1750288246569,-151.0,0.00022739,7]
[366491852,1750288246578,-500.2,0.00022739,6]
[366491854,1750288246587,-612.61,0.00022739,6]
[366491856,1750288246596,-982.38,0.00022739,6]
[366491859,1750288246608,-430.0,0.00022739,6]
[366491861,1750288246619,-460.0,0.00022739,6]
[366491863,1750288246629,-2124.4,0.00022739,6]
[366491865,1750288246638,-561.15,0.00022739,6]
[366491867,1750288246648,-460.0,0.00022739,6]
[366491869,1750288246657,-460.0,0.00022739,6]
[366491871,1750288246667,-460.0,0.00022739,6]
[366491873,1750288246677,-680.8,0.00022739,6]
[366491875,1750288246687,-151.0,0.00022739,7]
[366491877,1750288246696,-410.0,0.00022739,6]
[366491879,1750288246705,-460.0,0.00022739,6]
[366491881,1750288246715,-460.0,0.00022739,6]
[366491883,1750288246724,-530.15,0.00022739,6]
[366491885,1750288246733,-2681.74,0.00022739,6]
[366491887,1750288246742,-460.0,0.00022739,6]
[366491889,1750288246752,-151.0,0.00022739,7]
[366491891,1750288246761,-460.0,0.00022739,6]
[366491893,1750288246771,-460.0,0.00022739,6]
[366491895,1750288246780,-1450.7,0.00022739,6]
[366491896,1750288246789,-460.0,0.00022739,6]
[366491898,1750288246798,-460.0,0.00022739,6]
[366491900,1750288246807,-376.716354,0.00022739,7]
[366491902,1750288246816,-1370.09,0.00022739,6]
[366491905,1750288246825,-376.716354,0.00022739,7]
[366491907,1750288246834,-460.0,0.00022739,6]
[366491908,1750288246843,-460.0,0.00022739,6]
[366491910,1750288246853,-460.0,0.00022739,6]
[366491912,1750288246862,-1428.41,0.00022739,6]
[366491914,1750288246871,-528.69,0.00022739,6]
[366491916,1750288246880,-514.49,0.00022739,6]
[366491919,1750288246890,-460.0,0.00022739,6]
[366491921,1750288246899,-460.0,0.00022739,6]
[366491923,1750288246909,-2477.32,0.00022739,6]
[366491925,1750288246919,-717.35,0.00022739,6]
[366491927,1750288246928,-1820.15,0.00022739,6]
[366491929,1750288246937,-440.0,0.00022739,6]
[366491930,1750288246946,-460.0,0.00022739,6]
[366491931,1750288246955,-460.0,0.00022739,6]
[366491932,1750288246964,-460.0,0.00022739,6]
[366491933,1750288246973,-1294.92,0.00022739,6]
[366491934,1750288246983,-248.16805665,0.00022739,6]
[366491935,1750288246992,-460.0,0.00022739,6]
[366491936,1750288247002,-589.19,0.00022739,2]
[366491937,1750288247011,-460.0,0.00022739,6]
[366491938,1750288247020,-547.98626068,0.00022739,6]
[366491940,1750288247033,-460.0,0.00022739,6]
[366491942,1750288247042,-746.06,0.00022739,6]
[366491946,1750288247055,-887.24,0.00022739,6]
[366491948,1750288247065,-1211.57,0.00022739,6]
[366491950,1750288247075,-1667.65,0.00022739,6]
[366491952,1750288247084,-151.0,0.00022739,7]
[366491954,1750288247093,-460.0,0.00022739,6]
[366491956,1750288247103,-460.0,0.00022739,6]
[366491958,1750288247113,-460.0,0.00022739,6]
[366491960,1750288247123,-5401.48,0.00022739,6]
[366491962,1750288247133,-494.64,0.00022739,6]
[366491964,1750288247142,-195.52723089,0.00022739,6]
[366491966,1750288247151,-746.12,0.00022739,6]
[366491968,1750288247160,-410.0,0.00022739,6]
[366491970,1750288247169,-460.0,0.00022739,6]
[366491972,1750288247178,-260.0,0.00022751,2]
[366491974,1750288247187,-500.0,0.00022773,2]
[366491976,1750288247197,-600.0,0.00022773,2]
[366491978,1750288247206,-500.0,0.00022773,2]
[366491979,1750288247215,-260.5176198,0.00022773,2]
[366491981,1750288247224,-502.67521021,0.00022773,2]
[366491983,1750288247234,-500.0,0.00022773,2]
[366491985,1750288247243,-500.0,0.00022773,2]
[366491987,1750288247252,-500.0,0.00022773,2]
[366491989,1750288247261,-500.0,0.00022773,2]
[366491991,1750288247270,-500.0,0.00022773,2]
[366491993,1750288247279,-800.0,0.0002278,2]
[366491994,1750288247288,-151.0,0.0002278,7]
[366491995,1750288247297,-151.0,0.0002278,7]
[366491996,1750288247307,-151.0,0.0002278,2]
[366491997,1750288247316,-151.0,0.0002278,2]
[366491998,1750288247325,-194.356652,0.0002278,7]
[366491999,1750288247334,-194.356652,0.0002278,7]
[366492000,1750288247343,-151.0,0.0002278,7]
[366492001,1750288247352,-168.0,0.00022792,2]
[366492002,1750288247362,-151.0,0.00022794,7]
[366492003,1750288247371,-800.0,0.00022797,2]
[366492004,1750288247380,-56959.28,0.000228,2]
[366492005,1750288247390,-262.69671347,0.00022846,2]
[366492006,1750288247399,-260.0,0.00022964,2]
[366492007,1750288247408,-168.0,0.00022975,2]
[366492008,1750288247422,-401.99,0.00022997,2]
[366492009,1750288247431,-151.0,0.00022998,7]
[366492010,1750288247440,-151.0,0.00022998,7]
[366492011,1750288247449,-151.0,0.00022998,7]
[366492012,1750288247459,-151.0,0.00022998,7]
[366492013,1750288247468,-151.0,0.00022998,7]
[366492014,1750288247477,-151.0,0.00022998,7]
[366492015,1750288247486,-151.0,0.00022998,7]
[366492016,1750288247497,-162.365828,0.00022998,7]
[366492017,1750288247506,-162.365828,0.00022998,7]
[366492018,1750288247516,-151.0,0.00022998,7]
[366492019,1750288247525,-151.0,0.00022998,7]
[366492021,1750288247534,-151.0,0.00022998,7]
[366492022,1750288247544,-275.711339,0.00022998,7]
[366492024,1750288247553,-151.0,0.00022998,7]
[366492026,1750288247562,-151.0,0.00022998,7]
[366492028,1750288247572,-151.0,0.00022998,7]
[366492030,1750288247581,-151.0,0.00022998,7]
[366492032,1750288247591,-151.0,0.00022998,7]
[366492033,1750288247600,-151.0,0.00022998,7]
[366492035,1750288247610,-151.0,0.00022998,7]
[366492037,1750288247620,-151.0,0.00022998,7]
[366492039,1750288247629,-151.0,0.00022998,7]
[366492044,1750288247668,-257.66779,0.00022998,7]
[366492046,1750288247678,-376.716354,0.00022998,7]
[366492048,1750288247686,-376.716354,0.00022998,7]
[366492050,1750288247695,-151.0,0.00022998,7]
[366492052,1750288247704,-53794.10610291,0.00022998,2]
[366492054,1750288247713,-260.0,0.00022999,2]
[366492056,1750288247722,-1000.0,0.00023,2]
[366492058,1750288247731,-12542.39314967,0.00023,7]
[366492060,1750288247740,-168.0,0.00023013,2]
[366492062,1750288247749,-151.0,0.00023013,7]
[366492064,1750288247760,-151.0,0.00023013,7]
[366492066,1750288247769,-460.0,0.00023013,6]
[366492068,1750288247778,-151.0,0.00023013,7]
[366492070,1750288247788,-151.0,0.00023013,7]
[366492072,1750288247797,-151.0,0.00023013,7]
[366492074,1750288247806,-151.0,0.00023013,7]
[366492076,1750288247815,-460.0,0.00023013,6]
[366492078,1750288247826,-400.0,0.00023013,6]
[366492080,1750288247836,-460.0,0.00023013,6]
[366492083,1750288247845,-460.0,0.00023013,6]
[366492084,1750288247855,-497.84,0.00023013,6]
[366492087,1750288247864,-151.0,0.00023013,7]
[366492088,1750288247873,-460.0,0.00023013,6]
[366492090,1750288247882,-460.0,0.00023013,6]
[366492092,1750288247891,-460.0,0.00023013,6]
[366492094,1750288247900,-151.0,0.00023013,7]
[366492096,1750288247909,-460.0,0.00023013,6]
[366492099,1750288247918,-566.34,0.00023013,6]
[366492100,1750288247928,-460.0,0.00023013,6]
[366492103,1750288247938,-674.57,0.00023013,6]
[366492104,1750288247948,-153.10273183,0.00023013,6]
[366492106,1750288247957,-460.0,0.00023013,6]
[366492108,1750288247965,-151.0,0.00023013,7]
[366492110,1750288247974,-151.0,0.00023013,7]
[366492112,1750288247983,-460.0,0.00023013,6]
[366492114,1750288247992,-460.0,0.00023013,6]
[366492116,1750288248002,-460.0,0.00023013,6]
[366492118,1750288248012,-460.0,0.00023013,6]
[366492120,1750288248022,-151.0,0.00023013,2]
[366492122,1750288248032,-188.0,0.00023013,2]
[366492124,1750288248042,-1259.89,0.00023013,6]
[366492126,1750288248052,-194.356652,0.00023013,7]
[366492128,1750288248063,-194.356652,0.00023013,7]
[366492130,1750288248072,-539.49,0.00023013,6]
[366492132,1750288248082,-151.0,0.00023013,7]
[366492134,1750288248092,-857.84,0.00023013,6]
[366492136,1750288248102,-2359.25,0.00023013,6]
[366492138,1750288248111,-729.85,0.00023013,6]
[366492140,1750288248121,-3535.11,0.00023013,6]
[366492142,1750288248131,-460.0,0.00023013,6]
[366492144,1750288248140,-708.82,0.00023013,6]
[366492146,1750288248150,-460.0,0.00023013,6]
[366492148,1750288248159,-460.0,0.00023013,6]
[366492150,1750288248169,-460.0,0.00023013,6]
[366492152,1750288248178,-460.0,0.00023013,6]
[366492154,1750288248188,-601.11,0.00023013,6]
[366492156,1750288248197,-460.0,0.00023013,6]
[366492158,1750288248207,-460.0,0.00023013,6]
[366492160,1750288248217,-704.51,0.00023013,6]
[366492162,1750288248227,-2913.28,0.00023013,6]
[366492164,1750288248237,-3761.47,0.00023013,6]
[366492166,1750288248247,-1278.45,0.00023013,6]
[366492167,1750288248257,-460.0,0.00023013,6]
[366492168,1750288248267,-842.53,0.00023013,6]
[366492169,1750288248277,-460.0,0.00023013,6]
[366492170,1750288248287,-500.2,0.00023013,6]
[366492171,1750288248296,-612.61,0.00023013,6]
[366492172,1750288248306,-982.38,0.00023013,6]
[366492173,1750288248315,-460.0,0.00023013,6]
[366492174,1750288248326,-2124.4,0.00023013,6]